[Event "*** Titled Tuesday Blitz"]
[Site "Chess.com"]
[Date "2020.03.03"]
[Round "7"]
[White "karinachess1"]
[Black "GMKrikor"]
[Result "0-1"]
[WhiteElo "2514"]
[BlackElo "2806"]
[TimeControl "180+1"]
[EndTime "14:17:28 PST"]
[Termination "GMKrikor won on time"]

1. d4 {[%clk 0:03:00.9]} 1... Nf6 {[%clk 0:03:00.1]} 2. Nf3 {[%clk 0:03:00.7]}
2... d5 {[%clk 0:02:59]} 3. c4 {[%clk 0:03:00.5]} 3... e6 {[%clk 0:02:59.4]} 4.
Nc3 {[%clk 0:03:00.4]} 4... h6 {[%clk 0:03:00]} 5. cxd5 {[%clk 0:02:49.9]} 5...
exd5 {[%clk 0:02:54.7]} 6. Bf4 {[%clk 0:02:49]} 6... Bd6 {[%clk 0:02:55]} 7.
Bxd6 {[%clk 0:02:41.3]} 7... Qxd6 {[%clk 0:02:54.9]} 8. Qc2 {[%clk 0:02:40.6]}
8... c6 {[%clk 0:02:52.4]} 9. e3 {[%clk 0:02:36.8]} 9... O-O {[%clk 0:02:51.7]}
10. Bd3 {[%clk 0:02:35]} 10... Nbd7 {[%clk 0:02:34.4]} 11. O-O {[%clk
0:02:27.2]} 11... Re8 {[%clk 0:02:34.5]} 12. Rab1 {[%clk 0:02:22.7]} 12... a5
{[%clk 0:02:26.8]} 13. a3 {[%clk 0:02:22]} 13... Qe7 {[%clk 0:02:13.9]} 14. Nd2
{[%clk 0:02:17.3]} 14... Nf8 {[%clk 0:01:26.5]} 15. b4 {[%clk 0:02:14.8]} 15...
axb4 {[%clk 0:01:25]} 16. axb4 {[%clk 0:02:15.7]} 16... b5 {[%clk 0:01:25.6]}
17. Rfe1 {[%clk 0:01:36.9]} 17... Ne6 {[%clk 0:01:25.4]} 18. Nf3 {[%clk
0:01:33.1]} 18... Qd6 {[%clk 0:01:16]} 19. Ne5 {[%clk 0:01:28.5]} 19... Bd7
{[%clk 0:01:12.9]} 20. h3 {[%clk 0:01:26.2]} 20... Rec8 {[%clk 0:01:00]} 21. Qe2
{[%clk 0:01:11.3]} 21... Be8 {[%clk 0:00:53.6]} 22. Rec1 {[%clk 0:01:10.3]}
22... Nd7 {[%clk 0:00:46.4]} 23. f4 {[%clk 0:01:08.5]} 23... Nxe5 {[%clk
0:00:46.5]} 24. fxe5 {[%clk 0:01:03.1]} 24... Qe7 {[%clk 0:00:46.4]} 25. Rf1
{[%clk 0:00:59.1]} 25... Ra3 {[%clk 0:00:41.6]} 26. Qd2 {[%clk 0:00:49.6]} 26...
Qg5 {[%clk 0:00:38.5]} 27. Rf5 {[%clk 0:00:40.8]} 27... Qh4 {[%clk 0:00:33.6]}
28. Ne2 {[%clk 0:00:30.2]} 28... Rca8 {[%clk 0:00:27.5]} 29. Rff1 {[%clk
0:00:28.2]} 29... Ra2 {[%clk 0:00:26.8]} 30. Rb2 {[%clk 0:00:27.4]} 30... Rxb2
{[%clk 0:00:27.1]} 31. Qxb2 {[%clk 0:00:28.3]} 31... Qg5 {[%clk 0:00:27.4]} 32.
Qd2 {[%clk 0:00:28]} 32... Ra3 {[%clk 0:00:26.1]} 33. Rf3 {[%clk 0:00:19.8]}
33... Bd7 {[%clk 0:00:21.5]} 34. Kh2 {[%clk 0:00:19.5]} 34... Qe7 {[%clk
0:00:20.8]} 35. Rg3 {[%clk 0:00:18.5]} 35... Kh8 {[%clk 0:00:17.1]} 36. Bb1
{[%clk 0:00:18.5]} 36... Ra4 {[%clk 0:00:15.9]} 37. Qc2 {[%clk 0:00:17]} 37...
Nf8 {[%clk 0:00:16.4]} 38. Nf4 {[%clk 0:00:14.4]} 38... Rxb4 {[%clk 0:00:10.2]}
39. Nh5 {[%clk 0:00:13.7]} 39... g6 {[%clk 0:00:10.8]} 40. Nf6 {[%clk
0:00:11.6]} 40... Bf5 {[%clk 0:00:10.6]} 41. Qxf5 {[%clk 0:00:11.6]} 41... Qe6
{[%clk 0:00:08.4]} 42. Qf4 {[%clk 0:00:10]} 42... Kg7 {[%clk 0:00:07.5]} 43.
Nh5+ {[%clk 0:00:10]} 43... Kh7 {[%clk 0:00:08.1]} 44. Nf6+ {[%clk 0:00:09.7]}
44... Kg7 {[%clk 0:00:08.7]} 45. Bf5 {[%clk 0:00:09.4]} 45... Qe7 {[%clk
0:00:05.4]} 46. Nh5+ {[%clk 0:00:09.4]} 46... Kh7 {[%clk 0:00:05.1]} 47. Nf6+
{[%clk 0:00:09.4]} 47... Kg7 {[%clk 0:00:05.3]} 48. e4 {[%clk 0:00:08.4]} 48...
Rxd4 {[%clk 0:00:04.8]} 49. Bg4 {[%clk 0:00:05.5]} 49... dxe4 {[%clk 0:00:02.5]}
50. Be2 {[%clk 0:00:04.9]} 50... b4 {[%clk 0:00:02.3]} 51. Ng4 {[%clk
0:00:04.4]} 51... Qg5 {[%clk 0:00:01.6]} 52. Qf6+ {[%clk 0:00:04.3]} 52... Qxf6
{[%clk 0:00:01.7]} 53. exf6+ {[%clk 0:00:05.2]} 53... Kh7 {[%clk 0:00:02.3]} 54.
Ne5 {[%clk 0:00:05.2]} 54... Rd5 {[%clk 0:00:01.6]} 55. Nxc6 {[%clk 0:00:04.7]}
55... Nd7 {[%clk 0:00:01.3]} 56. Nxb4 {[%clk 0:00:04.2]} 56... Rf5 {[%clk
0:00:01.3]} 57. Bg4 {[%clk 0:00:04]} 57... Rb5 {[%clk 0:00:01.1]} 58. Bxd7
{[%clk 0:00:03.3]} 58... Rxb4 {[%clk 0:00:01.7]} 59. Be8 {[%clk 0:00:03.2]}
59... Rb7 {[%clk 0:00:01.5]} 60. Bc6 {[%clk 0:00:02.7]} 60... Rc7 {[%clk
0:00:01.2]} 61. Bxe4 {[%clk 0:00:02.5]} 61... Rc4 {[%clk 0:00:01.8]} 0-1

[Event "*** Titled Tuesday Blitz"]
[Site "Chess.com"]
[Date "2020.03.03"]
[Round "7"]
[White "lelya96"]
[Black "AndreyNeves"]
[Result "1/2-1/2"]
[WhiteElo "2289"]
[BlackElo "2197"]
[TimeControl "180+1"]
[EndTime "14:18:22 PST"]
[Termination "Game drawn by repetition"]

1. d4 {[%clk 0:02:59]} 1... Nf6 {[%clk 0:02:58.8]} 2. Nc3 {[%clk 0:02:59.1]}
2... c5 {[%clk 0:02:55.9]} 3. d5 {[%clk 0:02:57.6]} 3... d6 {[%clk 0:02:52.3]}
4. e4 {[%clk 0:02:57.7]} 4... g6 {[%clk 0:02:52.2]} 5. Nf3 {[%clk 0:02:56.9]}
5... Bg7 {[%clk 0:02:52]} 6. Bb5+ {[%clk 0:02:57.4]} 6... Bd7 {[%clk 0:02:49.1]}
7. a4 {[%clk 0:02:57.3]} 7... a6 {[%clk 0:02:48.7]} 8. Be2 {[%clk 0:02:55.6]}
8... O-O {[%clk 0:02:47.9]} 9. O-O {[%clk 0:02:54.5]} 9... Bg4 {[%clk
0:02:46.2]} 10. Nd2 {[%clk 0:02:53.2]} 10... Bxe2 {[%clk 0:02:44.9]} 11. Qxe2
{[%clk 0:02:53.4]} 11... Nbd7 {[%clk 0:02:42.2]} 12. Nc4 {[%clk 0:02:53.4]}
12... b6 {[%clk 0:02:35.5]} 13. Bg5 {[%clk 0:02:49.1]} 13... Ne8 {[%clk
0:02:20.8]} 14. f4 {[%clk 0:02:39.3]} 14... Rb8 {[%clk 0:02:08.9]} 15. e5 {[%clk
0:02:22.8]} 15... b5 {[%clk 0:02:02]} 16. axb5 {[%clk 0:02:15.8]} 16... axb5
{[%clk 0:02:01.7]} 17. Nxd6 {[%clk 0:02:04.9]} 17... f6 {[%clk 0:01:34.4]} 18.
exf6 {[%clk 0:01:45.5]} 18... exf6 {[%clk 0:01:34.1]} 19. Qe6+ {[%clk
0:01:44.3]} 19... Kh8 {[%clk 0:01:29.7]} 20. Bh4 {[%clk 0:01:09.5]} 20... Nxd6
{[%clk 0:01:18.9]} 21. Qxd6 {[%clk 0:01:09.2]} 21... Rb6 {[%clk 0:01:10.7]} 22.
Qe6 {[%clk 0:00:27.9]} 22... Rxe6 {[%clk 0:01:08.9]} 23. dxe6 {[%clk 0:00:27.9]}
23... Nb6 {[%clk 0:01:04.3]} 24. Nxb5 {[%clk 0:00:26.3]} 24... Re8 {[%clk
0:00:58.3]} 25. Rfe1 {[%clk 0:00:23.4]} 25... g5 {[%clk 0:00:44.4]} 26. Bg3
{[%clk 0:00:21.2]} 26... g4 {[%clk 0:00:36.3]} 27. f5 {[%clk 0:00:20.3]} 27...
Nc4 {[%clk 0:00:32.7]} 28. b3 {[%clk 0:00:19.9]} 28... Ne5 {[%clk 0:00:31.6]}
29. Rad1 {[%clk 0:00:19.4]} 29... Qb8 {[%clk 0:00:30.2]} 30. Nd6 {[%clk
0:00:19.3]} 30... h5 {[%clk 0:00:25.7]} 31. Bxe5 {[%clk 0:00:19]} 31... fxe5
{[%clk 0:00:24.8]} 32. Nxe8 {[%clk 0:00:19.6]} 32... Qxe8 {[%clk 0:00:24.6]} 33.
Rd7 {[%clk 0:00:20.3]} 33... e4 {[%clk 0:00:23.2]} 34. Red1 {[%clk 0:00:20.6]}
34... Bd4+ {[%clk 0:00:23.3]} 35. Kf1 {[%clk 0:00:19.9]} 35... e3 {[%clk
0:00:23.6]} 36. Ke2 {[%clk 0:00:19.8]} 36... Qf8 {[%clk 0:00:20.5]} 37. c3
{[%clk 0:00:19.5]} 37... Qxf5 {[%clk 0:00:17.8]} 38. cxd4 {[%clk 0:00:19.7]}
38... Qf2+ {[%clk 0:00:17.6]} 39. Kd3 {[%clk 0:00:20.1]} 39... e2 {[%clk
0:00:16.6]} 40. Rd8+ {[%clk 0:00:20.2]} 40... Kh7 {[%clk 0:00:15.5]} 41. Rd7+
{[%clk 0:00:20.1]} 41... Kg6 {[%clk 0:00:15.5]} 42. Rd2 {[%clk 0:00:19.3]} 42...
e1=Q {[%clk 0:00:14.4]} 43. Rxf2 {[%clk 0:00:19.3]} 43... Qxf2 {[%clk
0:00:14.4]} 44. e7 {[%clk 0:00:19.8]} 44... Qf1+ {[%clk 0:00:12.7]} 45. Kc3
{[%clk 0:00:19.3]} 45... cxd4+ {[%clk 0:00:11.7]} 46. Rxd4 {[%clk 0:00:18.6]}
46... Qf7 {[%clk 0:00:10.5]} 47. Rd6+ {[%clk 0:00:18.3]} 47... Kg5 {[%clk
0:00:09.9]} 48. Rd7 {[%clk 0:00:17.8]} 48... Qe8 {[%clk 0:00:09.8]} 49. Rc7
{[%clk 0:00:17.6]} 49... h4 {[%clk 0:00:10.7]} 50. Rc5+ {[%clk 0:00:17.2]} 50...
Kf4 {[%clk 0:00:10.1]} 51. Rc4+ {[%clk 0:00:17.2]} 51... Ke3 {[%clk 0:00:08.5]}
52. Rc7 {[%clk 0:00:16.6]} 52... Kf2 {[%clk 0:00:08]} 53. g3 {[%clk 0:00:15.6]}
53... h3 {[%clk 0:00:07.6]} 54. b4 {[%clk 0:00:14.4]} 54... Kg2 {[%clk
0:00:07.6]} 55. b5 {[%clk 0:00:15.3]} 55... Kxh2 {[%clk 0:00:08.2]} 56. b6
{[%clk 0:00:16.2]} 56... Kxg3 {[%clk 0:00:08]} 57. b7 {[%clk 0:00:17.1]} 57...
h2 {[%clk 0:00:08.1]} 58. Rc8 {[%clk 0:00:17.6]} 58... Qxe7 {[%clk 0:00:04.3]}
59. b8=Q+ {[%clk 0:00:18.5]} 59... Kg2 {[%clk 0:00:03.6]} 60. Qb7+ {[%clk
0:00:19.4]} 60... Kg1 {[%clk 0:00:03]} 61. Qb8 {[%clk 0:00:20.3]} 61... h1=Q
{[%clk 0:00:02.1]} 62. Qa8 {[%clk 0:00:21.2]} 62... Qee4 {[%clk 0:00:01.8]} 63.
Qa1+ {[%clk 0:00:22.1]} 63... Kg2 {[%clk 0:00:01.7]} 64. Qb2+ {[%clk 0:00:19.3]}
64... Kg3 {[%clk 0:00:01.7]} 65. Rc4 {[%clk 0:00:17]} 65... Qhf3+ {[%clk
0:00:02.6]} 66. Kb4 {[%clk 0:00:16.2]} 66... Qxc4+ {[%clk 0:00:03.5]} 67. Kxc4
{[%clk 0:00:16.1]} 67... Qf4+ {[%clk 0:00:04]} 68. Kb3 {[%clk 0:00:14.3]} 68...
Qf3+ {[%clk 0:00:04.9]} 69. Kb4 {[%clk 0:00:14.4]} 69... Qf4+ {[%clk 0:00:05.8]}
70. Kb3 {[%clk 0:00:14.7]} 70... Qf2 {[%clk 0:00:06.4]} 71. Qe5+ {[%clk
0:00:14]} 71... Kg2 {[%clk 0:00:04.8]} 72. Kc3 {[%clk 0:00:12.1]} 72... Qf3+
{[%clk 0:00:04.7]} 73. Kd4 {[%clk 0:00:12.2]} 73... g3 {[%clk 0:00:05.6]} 74.
Qb5 {[%clk 0:00:11.1]} 74... Qf2+ {[%clk 0:00:05.6]} 75. Ke4 {[%clk 0:00:10.8]}
75... Kh1 {[%clk 0:00:05.5]} 76. Qh5+ {[%clk 0:00:10]} 76... Qh2 {[%clk
0:00:04.6]} 77. Qd1+ {[%clk 0:00:10]} 77... Kg2 {[%clk 0:00:05.1]} 78. Qe2+
{[%clk 0:00:10.2]} 78... Kh3 {[%clk 0:00:04.6]} 79. Qh5+ {[%clk 0:00:10]} 79...
Kg2 {[%clk 0:00:04.6]} 80. Qf3+ {[%clk 0:00:09.9]} 80... Kg1 {[%clk 0:00:04.7]}
81. Qd1+ {[%clk 0:00:09.7]} 81... Kf2 {[%clk 0:00:04.4]} 82. Qd2+ {[%clk
0:00:09.5]} 82... Kf1 {[%clk 0:00:03.9]} 83. Qd1+ {[%clk 0:00:09.6]} 83... Kf2
{[%clk 0:00:04.1]} 84. Qd2+ {[%clk 0:00:10]} 84... Kf1 {[%clk 0:00:04.4]} 85.
Qd1+ {[%clk 0:00:09.6]} 85... Kf2 {[%clk 0:00:04.7]} 1/2-1/2

[Event "*** Titled Tuesday Blitz"]
[Site "Chess.com"]
[Date "2020.03.03"]
[Round "7"]
[White "ChessBitl"]
[Black "GMsKoRPioN"]
[Result "1-0"]
[WhiteElo "2323"]
[BlackElo "2457"]
[TimeControl "180+1"]
[EndTime "14:22:32 PST"]
[Termination "ChessBitl won by checkmate"]

1. e4 {[%clk 0:02:33.6]} 1... d6 {[%clk 0:03:00.5]} 2. d4 {[%clk 0:02:33.1]}
2... g6 {[%clk 0:03:01.4]} 3. f3 {[%clk 0:02:33.1]} 3... Bg7 {[%clk 0:03:01.9]}
4. c4 {[%clk 0:02:32.8]} 4... Nf6 {[%clk 0:03:01.5]} 5. Nc3 {[%clk 0:02:33]}
5... O-O {[%clk 0:03:01.6]} 6. Be3 {[%clk 0:02:33.5]} 6... e5 {[%clk 0:03:00.1]}
7. d5 {[%clk 0:02:31.5]} 7... Nh5 {[%clk 0:03:00.3]} 8. Qd2 {[%clk 0:02:31.9]}
8... f5 {[%clk 0:03:00.4]} 9. Bd3 {[%clk 0:02:31.6]} 9... Nd7 {[%clk 0:02:57.4]}
10. Nge2 {[%clk 0:02:31.4]} 10... Ndf6 {[%clk 0:02:57.2]} 11. O-O-O {[%clk
0:02:28.6]} 11... a6 {[%clk 0:02:56.3]} 12. Kb1 {[%clk 0:02:28.3]} 12... Bd7
{[%clk 0:02:56.2]} 13. Rc1 {[%clk 0:02:24.3]} 13... Qe7 {[%clk 0:02:54.4]} 14.
h3 {[%clk 0:02:17.4]} 14... f4 {[%clk 0:02:53]} 15. Bf2 {[%clk 0:02:15.8]} 15...
Kh8 {[%clk 0:02:51]} 16. Rhd1 {[%clk 0:02:04.2]} 16... Ng8 {[%clk 0:02:49]} 17.
Qc2 {[%clk 0:01:58.1]} 17... Bf6 {[%clk 0:02:47.4]} 18. Na4 {[%clk 0:01:55.1]}
18... b6 {[%clk 0:02:44.8]} 19. b4 {[%clk 0:01:49.7]} 19... a5 {[%clk
0:02:42.3]} 20. b5 {[%clk 0:01:46]} 20... Bh4 {[%clk 0:02:40.3]} 21. Bg1 {[%clk
0:01:45.4]} 21... Rfc8 {[%clk 0:02:30.6]} 22. Nb2 {[%clk 0:01:43.9]} 22... Be8
{[%clk 0:02:28]} 23. a4 {[%clk 0:01:43.4]} 23... Ngf6 {[%clk 0:02:28.3]} 24. Qd2
{[%clk 0:01:38.3]} 24... Nd7 {[%clk 0:02:28.3]} 25. Nc3 {[%clk 0:01:34.5]} 25...
Nc5 {[%clk 0:02:28.2]} 26. Bc2 {[%clk 0:01:34.2]} 26... Ng3 {[%clk 0:02:26]} 27.
Nd3 {[%clk 0:01:33.5]} 27... Bf6 {[%clk 0:02:23.4]} 28. Nxc5 {[%clk 0:01:32.8]}
28... dxc5 {[%clk 0:02:22]} 29. Ne2 {[%clk 0:01:32.2]} 29... Rd8 {[%clk
0:02:19.3]} 30. Nxg3 {[%clk 0:01:28.7]} 30... fxg3 {[%clk 0:02:20.2]} 31. Be3
{[%clk 0:01:29.1]} 31... Qd6 {[%clk 0:02:16.3]} 32. Ka2 {[%clk 0:01:28.7]} 32...
Bd7 {[%clk 0:02:16.3]} 33. Bb3 {[%clk 0:01:28.2]} 33... Rf8 {[%clk 0:02:16.5]}
34. Bh6 {[%clk 0:01:23.5]} 34... Rf7 {[%clk 0:02:16.9]} 35. Qe1 {[%clk
0:01:20.6]} 35... Rg8 {[%clk 0:02:17.4]} 36. Be3 {[%clk 0:01:18.2]} 36... Bh4
{[%clk 0:02:16.9]} 37. Qc3 {[%clk 0:01:11.7]} 37... Kg7 {[%clk 0:02:14]} 38. Rd2
{[%clk 0:01:10.8]} 38... h6 {[%clk 0:02:12.1]} 39. Rcd1 {[%clk 0:01:04.1]} 39...
Bc8 {[%clk 0:02:11.9]} 40. Bc2 {[%clk 0:01:03.4]} 40... Re8 {[%clk 0:02:11.9]}
41. Rf1 {[%clk 0:01:02.1]} 41... Ref8 {[%clk 0:02:07]} 42. Re2 {[%clk
0:01:01.8]} 42... Kh7 {[%clk 0:02:06.4]} 43. Qd2 {[%clk 0:01:01.2]} 43... h5
{[%clk 0:01:47.2]} 44. Qd1 {[%clk 0:00:57.7]} 44... Qf6 {[%clk 0:01:45.7]} 45.
Bd2 {[%clk 0:00:56.8]} 45... Rd8 {[%clk 0:01:44.6]} 46. Bc3 {[%clk 0:00:56.1]}
46... Bg5 {[%clk 0:01:44.1]} 47. Qa1 {[%clk 0:00:54.3]} 47... Bf4 {[%clk
0:01:44.3]} 48. Rd1 {[%clk 0:00:54.2]} 48... Qd6 {[%clk 0:01:43.8]} 49. Rd3
{[%clk 0:00:53]} 49... g5 {[%clk 0:01:43.3]} 50. Qd1 {[%clk 0:00:50.9]} 50...
Kg8 {[%clk 0:01:42]} 51. Kb3 {[%clk 0:00:50.9]} 51... Rg7 {[%clk 0:01:41.3]} 52.
Re1 {[%clk 0:00:48.4]} 52... Rg6 {[%clk 0:01:41.6]} 53. Rh1 {[%clk 0:00:48.3]}
53... Rd7 {[%clk 0:01:41.9]} 54. Qa1 {[%clk 0:00:42.1]} 54... Rdg7 {[%clk
0:01:41.5]} 55. Bd1 {[%clk 0:00:42.2]} 55... Rf7 {[%clk 0:01:41.3]} 56. Be2
{[%clk 0:00:42.3]} 56... Bd7 {[%clk 0:01:40.8]} 57. Qb2 {[%clk 0:00:41.2]} 57...
Kf8 {[%clk 0:01:39]} 58. Qa1 {[%clk 0:00:41.1]} 58... Ke8 {[%clk 0:01:39.5]} 59.
Qb2 {[%clk 0:00:41.5]} 59... Kd8 {[%clk 0:01:40.2]} 60. Qa1 {[%clk 0:00:41.1]}
60... Ke7 {[%clk 0:01:39.9]} 61. Qb2 {[%clk 0:00:41.2]} 61... Qf6 {[%clk
0:01:37.1]} 62. Qc2 {[%clk 0:00:40.3]} 62... Kd6 {[%clk 0:01:35.9]} 63. Rd2
{[%clk 0:00:40.2]} 63... Rg8 {[%clk 0:01:34.6]} 64. Rdd1 {[%clk 0:00:40.1]}
64... Qg7 {[%clk 0:01:34.9]} 65. Rdf1 {[%clk 0:00:37.6]} 65... Be3 {[%clk
0:01:34.3]} 66. Qd3 {[%clk 0:00:36.6]} 66... Bd4 {[%clk 0:01:33.8]} 67. Bd2
{[%clk 0:00:36.8]} 67... Rf4 {[%clk 0:01:32.4]} 68. Bxf4 {[%clk 0:00:34.4]}
68... exf4 {[%clk 0:01:33.3]} 69. Rd1 {[%clk 0:00:30.8]} 69... Qe5 {[%clk
0:01:33.3]} 70. Rd2 {[%clk 0:00:29.5]} 70... Re8 {[%clk 0:01:33.3]} 71. Rhd1
{[%clk 0:00:29.2]} 71... Qf6 {[%clk 0:01:32.4]} 72. Qc2 {[%clk 0:00:29.3]} 72...
Be5 {[%clk 0:01:32.8]} 73. Qa2 {[%clk 0:00:28.8]} 73... Rg8 {[%clk 0:01:33.2]}
74. Qc2 {[%clk 0:00:27.8]} 74... Bc8 {[%clk 0:01:29.7]} 75. Rh1 {[%clk
0:00:27.7]} 75... Rg7 {[%clk 0:01:28.2]} 76. Rdd1 {[%clk 0:00:28]} 76... Qe7
{[%clk 0:01:28.7]} 77. Ka2 {[%clk 0:00:28.4]} 77... Qf8 {[%clk 0:01:29.6]} 78.
Kb3 {[%clk 0:00:28.8]} 78... Qg8 {[%clk 0:01:30.2]} 79. Ka2 {[%clk 0:00:29.1]}
79... Qe8 {[%clk 0:01:28.9]} 80. Kb3 {[%clk 0:00:29.4]} 80... Qg6 {[%clk
0:01:29.4]} 81. Ka2 {[%clk 0:00:29.8]} 81... Rh7 {[%clk 0:01:28.1]} 82. Kb3
{[%clk 0:00:29.6]} 82... Qg8 {[%clk 0:01:28.5]} 83. Ka2 {[%clk 0:00:29.6]} 83...
Qh8 {[%clk 0:01:29.1]} 84. Kb3 {[%clk 0:00:29.6]} 84... Bd7 {[%clk 0:01:29.7]}
85. Ka2 {[%clk 0:00:29.7]} 85... Ke7 {[%clk 0:01:28.7]} 86. Kb3 {[%clk 0:00:30]}
86... Bd6 {[%clk 0:01:28.6]} 87. Ka2 {[%clk 0:00:29.8]} 87... Qe5 {[%clk
0:01:26.2]} 88. Qb2 {[%clk 0:00:29.5]} 88... Qxb2+ {[%clk 0:01:25.8]} 89. Kxb2
{[%clk 0:00:29.2]} 89... Be5+ {[%clk 0:01:26.7]} 90. Kc2 {[%clk 0:00:29.2]}
90... Kd6 {[%clk 0:01:27.6]} 91. Kd3 {[%clk 0:00:29.2]} 91... Bd4 {[%clk
0:01:27.9]} 92. Rde1 {[%clk 0:00:28.6]} 92... Ke5 {[%clk 0:01:28.8]} 93. Rd1
{[%clk 0:00:28.8]} 93... Bc8 {[%clk 0:01:29.1]} 94. Rb1 {[%clk 0:00:29.1]} 94...
Rg7 {[%clk 0:01:29.5]} 95. Rbd1 {[%clk 0:00:29.5]} 95... Rf7 {[%clk 0:01:30.1]}
96. Rb1 {[%clk 0:00:29.4]} 96... Be3 {[%clk 0:01:30.2]} 97. Rbd1 {[%clk
0:00:29.5]} 97... Kd6 {[%clk 0:01:30.6]} 98. Rb1 {[%clk 0:00:29.8]} 98... Bb7
{[%clk 0:01:29.6]} 99. Rbd1 {[%clk 0:00:30]} 99... Re7 {[%clk 0:01:29]} 100. Rb1
{[%clk 0:00:30.3]} 100... Bc8 {[%clk 0:01:29.1]} 101. Rbd1 {[%clk 0:00:30]}
101... Re5 {[%clk 0:01:29.5]} 102. Rb1 {[%clk 0:00:29.6]} 102... Bd7 {[%clk
0:01:28.4]} 103. Rbd1 {[%clk 0:00:29.6]} 103... Re8 {[%clk 0:01:27.9]} 104. Rb1
{[%clk 0:00:29.4]} 104... Ke5 {[%clk 0:01:28.2]} 105. Rbd1 {[%clk 0:00:24.8]}
105... Rg8 {[%clk 0:01:28.6]} 106. Kc2 {[%clk 0:00:23.1]} 106... Bd4 {[%clk
0:01:27.7]} 107. Rd3 {[%clk 0:00:22.2]} 107... Bc8 {[%clk 0:01:26.9]} 108. Rdd1
{[%clk 0:00:22.2]} 108... Rg7 {[%clk 0:01:27.1]} 109. Rd3 {[%clk 0:00:22.2]}
109... Rh7 {[%clk 0:01:11]} 110. Rdd1 {[%clk 0:00:21.5]} 110... Bd7 {[%clk
0:01:10.1]} 111. Rd3 {[%clk 0:00:21.5]} 111... Be8 {[%clk 0:01:09.3]} 112. Rdd1
{[%clk 0:00:21.6]} 112... Bg6 {[%clk 0:01:09.1]} 113. Kb3 {[%clk 0:00:21.6]}
113... Rh8 {[%clk 0:01:08.1]} 114. Rd3 {[%clk 0:00:21.5]} 114... Rh7 {[%clk
0:01:05.9]} 115. Rdd1 {[%clk 0:00:21.8]} 115... Rh6 {[%clk 0:01:06.1]} 116. Rd3
{[%clk 0:00:22]} 116... Kd6 {[%clk 0:01:03.6]} 117. Rdd1 {[%clk 0:00:22.9]}
117... Be5 {[%clk 0:01:03.7]} 118. Rd3 {[%clk 0:00:22.7]} 118... Rh8 {[%clk
0:01:01]} 119. Rdd1 {[%clk 0:00:22.7]} 119... Re8 {[%clk 0:01:01.3]} 120. Rd3
{[%clk 0:00:22.8]} 120... Bg7 {[%clk 0:00:59.6]} 121. Rdd1 {[%clk 0:00:23.2]}
121... Re7 {[%clk 0:00:59.1]} 122. Rd3 {[%clk 0:00:23]} 122... g4 {[%clk
0:00:59.5]} 123. hxg4 {[%clk 0:00:22.4]} 123... hxg4 {[%clk 0:00:59.9]} 124.
Rdd1 {[%clk 0:00:20.2]} 124... gxf3 {[%clk 0:00:58.6]} 125. gxf3 {[%clk
0:00:20]} 125... Bd4 {[%clk 0:00:55.5]} 126. Bf1 {[%clk 0:00:17.8]} 126... Rg7
{[%clk 0:00:52.4]} 127. Bg2 {[%clk 0:00:17.8]} 127... Be8 {[%clk 0:00:52.2]}
128. Kc2 {[%clk 0:00:17.8]} 128... Bd7 {[%clk 0:00:52.4]} 129. Kd3 {[%clk
0:00:18]} 129... Rg6 {[%clk 0:00:49.5]} 130. Rh4 {[%clk 0:00:18.2]} 130... Be5
{[%clk 0:00:49.6]} 131. Rdh1 {[%clk 0:00:18.3]} 131... Be8 {[%clk 0:00:49.2]}
132. Rh6 {[%clk 0:00:17.6]} 132... Ke7 {[%clk 0:00:49.5]} 133. Rxg6 {[%clk
0:00:15.5]} 133... Bxg6 {[%clk 0:00:50.4]} 134. Rh4 {[%clk 0:00:15.5]} 134...
Kf6 {[%clk 0:00:50]} 135. Rh1 {[%clk 0:00:14.1]} 135... Kg7 {[%clk 0:00:49.3]}
136. Bh3 {[%clk 0:00:12.8]} 136... Kf6 {[%clk 0:00:48.3]} 137. Bg4 {[%clk
0:00:11.2]} 137... Kg5 {[%clk 0:00:48]} 138. Bh3 {[%clk 0:00:10.5]} 138... Bd4
{[%clk 0:00:47.2]} 139. Bg2 {[%clk 0:00:10.4]} 139... Bh5 {[%clk 0:00:47.1]}
140. Rd1 {[%clk 0:00:09.4]} 140... Be5 {[%clk 0:00:47.4]} 141. Rh1 {[%clk
0:00:09.6]} 141... Bd6 {[%clk 0:00:47.1]} 142. Rd1 {[%clk 0:00:09.6]} 142... Be5
{[%clk 0:00:44.3]} 143. Re1 {[%clk 0:00:09.5]} 143... Bg6 {[%clk 0:00:41.9]}
144. Rh1 {[%clk 0:00:09.2]} 144... Bd4 {[%clk 0:00:40.7]} 145. Re1 {[%clk
0:00:08.6]} 145... Bh7 {[%clk 0:00:37.3]} 146. Rd1 {[%clk 0:00:08.8]} 146... Bg8
{[%clk 0:00:29.4]} 147. Rf1 {[%clk 0:00:09]} 147... Bf7 {[%clk 0:00:29.5]} 148.
Ke2 {[%clk 0:00:08.9]} 148... Bh5 {[%clk 0:00:28.1]} 149. Rd1 {[%clk 0:00:07.8]}
149... Be5 {[%clk 0:00:28.5]} 150. Rd3 {[%clk 0:00:06.1]} 150... Kh4 {[%clk
0:00:26.1]} 151. Rd1 {[%clk 0:00:05.2]} 151... Bf7 {[%clk 0:00:25]} 152. Rh1+
{[%clk 0:00:04.9]} 152... Kg5 {[%clk 0:00:25.3]} 153. Rh7 {[%clk 0:00:04.6]}
153... Kg6 {[%clk 0:00:24.8]} 154. Rh4 {[%clk 0:00:03]} 154... Be8 {[%clk
0:00:23.8]} 155. Rh1 {[%clk 0:00:03.5]} 155... Bd7 {[%clk 0:00:21.7]} 156. Rd1
{[%clk 0:00:04.4]} 156... Kg5 {[%clk 0:00:19.4]} 157. Rf1 {[%clk 0:00:05.3]}
157... Kh4 {[%clk 0:00:19.6]} 158. Rh1+ {[%clk 0:00:05.5]} 158... Kg5 {[%clk
0:00:19.9]} 159. Rh7 {[%clk 0:00:05.4]} 159... Be8 {[%clk 0:00:19]} 160. Re7
{[%clk 0:00:04.9]} 160... Bd6 {[%clk 0:00:14]} 161. Rxe8 {[%clk 0:00:04.9]}
161... Kf6 {[%clk 0:00:14.9]} 162. Re6+ {[%clk 0:00:04.9]} 162... Kf7 {[%clk
0:00:15.2]} 163. Bh3 {[%clk 0:00:05.4]} 163... Kg7 {[%clk 0:00:15.3]} 164. Kf1
{[%clk 0:00:06.3]} 164... Kf7 {[%clk 0:00:15.7]} 165. Kg2 {[%clk 0:00:06.9]}
165... Kg7 {[%clk 0:00:16.3]} 166. Bf5 {[%clk 0:00:07.5]} 166... Kf7 {[%clk
0:00:17.2]} 167. Rg6 {[%clk 0:00:07.6]} 167... Ke7 {[%clk 0:00:17.2]} 168. Re6+
{[%clk 0:00:07.6]} 168... Kf7 {[%clk 0:00:17.4]} 169. e5 {[%clk 0:00:08.1]}
169... Be7 {[%clk 0:00:13.8]} 170. Rxe7+ {[%clk 0:00:07.8]} 170... Kxe7 {[%clk
0:00:13.9]} 171. Bd3 {[%clk 0:00:07.7]} 171... Kf7 {[%clk 0:00:14]} 172. Bf1
{[%clk 0:00:07.8]} 172... Kg6 {[%clk 0:00:13.7]} 173. Kh3 {[%clk 0:00:08.3]}
173... Kf5 {[%clk 0:00:13.9]} 174. e6 {[%clk 0:00:07.8]} 174... Kf6 {[%clk
0:00:14.4]} 175. Kg4 {[%clk 0:00:07.1]} 175... Ke7 {[%clk 0:00:14.8]} 176. Kxf4
{[%clk 0:00:06.9]} 176... g2 {[%clk 0:00:15.2]} 177. Bxg2 {[%clk 0:00:05.8]}
177... c6 {[%clk 0:00:16.1]} 178. Ke5 {[%clk 0:00:05.4]} 178... cxb5 {[%clk
0:00:15.7]} 179. cxb5 {[%clk 0:00:04.6]} 179... c4 {[%clk 0:00:15.4]} 180. d6+
{[%clk 0:00:05.1]} 180... Kd8 {[%clk 0:00:15.2]} 181. Bf1 {[%clk 0:00:05.4]}
181... c3 {[%clk 0:00:15.3]} 182. Bd3 {[%clk 0:00:05.7]} 182... Kc8 {[%clk
0:00:15.5]} 183. e7 {[%clk 0:00:05.4]} 183... c2 {[%clk 0:00:16.4]} 184. Bf5+
{[%clk 0:00:05.4]} 184... Kb7 {[%clk 0:00:17.3]} 185. Bxc2 {[%clk 0:00:05.4]}
185... Ka7 {[%clk 0:00:18.2]} 186. Be4 {[%clk 0:00:05.4]} 186... Kb8 {[%clk
0:00:18.2]} 187. e8=Q+ {[%clk 0:00:04.6]} 187... Ka7 {[%clk 0:00:19.1]} 188.
Qa8# {[%clk 0:00:04.2]} 1-0